bitfinex/quotes_ETHUSD_20260226
["timestamp","ask_amount","ask_price","bid_price","bid_amount"]
[1772112985466,0.002,2070.9,2070.5,0.57893165]
[1772112985680,1.20704467,2071.2,2070.7,0.57893165]
[1772112985974,3.8367143,2071.3,2070.7,0.57893165]
[1772112986873,0.002,2071.3,2070.8,0.57337773]
[1772112988172,0.002,2071.3,2071.0,0.57337773]
[1772112991665,0.61820021,2071.3,2071.0,0.57337773]
[1772112992472,0.002,2071.3,2071.0,0.57337773]
[1772112993577,1.20694476,2071.4,2071.0,0.57337773]
[1772112993783,1.19138551,2071.4,2071.0,0.57337773]
[1772112993948,1.17193259,2071.4,2071.0,0.57337773]
[1772112994158,1.14469129,2071.4,2071.0,0.57337773]
[1772112994372,1.12912105,2071.4,2071.0,0.57337773]
[1772112994585,1.11354807,2071.4,2071.0,0.57337773]
[1772112994757,1.09797233,2071.4,2071.0,0.57337773]
[1772112994954,1.07460357,2071.4,2071.0,0.57337773]
[1772112995157,1.05512488,2071.4,2071.0,0.57337773]
[1772112995360,1.6518421,2071.4,2071.0,0.57337773]
[1772112995567,1.62845684,2071.4,2071.0,0.57337773]
[1772112995854,0.002,2071.2,2071.0,0.57337773]
[1772112996054,1.61286322,2071.4,2071.0,0.57337773]
[1772112996371,1.61286322,2071.4,2070.6,4.82943388]
[1772112996372,0.61620021,2071.3,2070.6,1.521]
[1772112996562,0.61620021,2071.1,2070.7,0.57337773]
[1772112996765,0.60639362,2071.1,2070.7,0.57337773]
[1772112998470,1.7907843,2071.3,2070.9,0.56599788]
[1772113000067,1.20701836,2071.3,2070.9,0.56599788]
[1772113000771,0.58576594,2071.4,2070.9,0.56599788]
[1772113000960,1.79271799,2071.4,2071.0,0.56599788]
[1772113003087,0.58376594,2071.3,2070.7,0.56599788]
[1772113005879,1.79079568,2071.2,2070.8,0.56599788]
[1772113006369,0.58376594,2071.1,2070.8,0.56599788]
[1772113008489,0.58376594,2071.1,2070.9,0.001]
[1772113014484,0.57068904,2071.1,2070.9,0.001]
[1772113014685,0.55434179,2071.1,2070.9,0.001]
[1772113014889,0.52818359,2071.1,2070.9,0.001]
[1772113015188,0.49548134,2071.1,2070.9,0.001]
[1772113015391,0.47585759,2071.1,2070.9,0.001]
[1772113015589,0.45623204,2071.1,2070.9,0.001]
[1772113015780,0.43333329,2071.1,2070.9,0.001]
[1772113015988,0.41697554,2071.1,2070.9,0.001]
[1772113016185,0.40061654,2071.1,2070.9,0.001]
[1772113016389,0.37771184,2071.1,2070.9,0.001]
[1772113016603,0.36134984,2071.1,2070.9,0.001]
[1772113016898,0.33189509,2071.1,2070.9,0.001]
[1772113017110,0.30570969,2071.1,2070.9,0.001]
[1772113017320,0.28934222,2071.1,2070.9,0.001]
[1772113017614,0.25987766,2071.1,2070.9,0.001]
[1772113017815,0.246781,2071.1,2070.9,0.001]
[1772113018114,0.24023237,2071.1,2070.9,0.001]
[1772113018305,0.23040905,2071.1,2070.9,0.001]
[1772113018479,0.21403585,2071.1,2070.9,0.001]
[1772113018676,1.20892243,2071.4,2071.0,0.60919011]
[1772113018891,1.80602658,2071.4,2071.0,0.60919011]
[1772113020407,1.80602658,2071.4,2070.9,0.001]
[1772113020408,0.59710415,2071.3,2070.9,0.001]
[1772113020575,0.59710415,2071.1,2070.9,0.001]
[1772113020779,0.59131416,2071.1,2070.9,0.001]
[1772113020989,1.804124,2071.3,2070.9,0.61019011]
[1772113021487,1.804124,2071.3,2071.1,0.001]
[1772113023882,0.59710415,2071.2,2071.1,0.001]
[1772113024210,0.59710415,2071.2,2070.9,0.001]
[1772113025892,1.20708802,2071.1,2070.9,0.001]
[1772113026692,1.15708802,2071.1,2070.9,0.001]
[1772113027018,1.20707554,2071.2,2070.9,0.61019011]
[1772113028007,4.82800953,2071.3,2070.9,0.61019011]
[1772113028181,1.20697146,2071.3,2070.9,0.61019011]
[1772113028386,1.8060189,2071.4,2071.0,0.60919011]
[1772113028800,1.8060189,2071.4,2070.9,1.20820451]
[1772113028801,0.59710415,2071.3,2070.9,0.61019011]
[1772113029714,0.59710415,2071.3,2070.9,0.001]
[1772113030103,1.80413389,2071.2,2070.9,0.001]
[1772113030807,0.59710415,2071.1,2070.9,0.001]
[1772113032515,1.20702974,2071.2,2070.9,0.001]
[1772113032722,0.59710415,2071.2,2070.9,0.61019011]
[1772113032901,0.59710415,2071.2,2070.9,0.001]
[1772113033719,0.59710415,2071.2,2071.1,0.001]
[1772113034917,1.80413389,2071.2,2071.1,0.001]
[1772113035093,0.59710415,2071.2,2071.1,0.001]
[1772113035507,1.80413389,2071.2,2071.1,0.001]
[1772113038923,0.59710415,2071.1,2070.9,0.001]
[1772113039305,0.59710415,2071.2,2070.9,0.90433937]
[1772113039509,1.20900562,2071.3,2071.0,0.60919011]
[1772113039707,1.80610977,2071.3,2071.0,0.60919011]
[1772113043204,0.60889537,2071.2,2070.8,0.0307213]
[1772113043804,0.60889537,2071.1,2070.6,0.001]
[1772113045506,0.60889537,2070.9,2070.6,0.001]
[1772113045723,0.58365553,2070.9,2070.6,0.001]
[1772113047729,1.7909177,2070.9,2070.6,0.001]
[1772113047931,0.60392865,2070.8,2070.6,0.001]
[1772113050929,0.60392865,2070.7,2070.6,0.001]
[1772113051114,0.60392865,2070.7,2070.4,0.001]
[1772113051721,0.60392865,2070.7,2070.1,0.001]
[1772113051722,0.60392865,2070.5,2070.1,0.001]
[1772113052122,1.20749613,2070.4,2070.1,0.29514926]
[1772113052429,0.60392865,2070.3,2070.1,0.29514926]
[1772113052632,0.60392865,2070.3,2070.0,0.29514926]
[1772113052807,0.60392865,2070.7,2070.2,0.29414948]
[1772113053009,1.83543485,2070.9,2070.5,1.9e-07]
[1772113053212,1.83543485,2070.9,2070.6,0.29414926]
[1772113053933,1.83540392,2070.9,2070.6,0.29414926]
[1772113054318,0.628192,2070.9,2070.6,0.2957885]
[1772113055540,1.83540515,2070.9,2070.6,0.2957885]
[1772113055920,1.83732503,2071.1,2070.8,0.29900506]
[1772113056249,0.002,2071.1,2070.8,0.29900506]
[1772113057038,1.20901313,2071.3,2071.0,0.30058796]
[1772113057242,1.83720513,2071.3,2071.0,0.29414926]
[1772113057553,0.628192,2071.2,2071.0,0.29414926]
[1772113057734,0.628192,2071.2,2070.8,0.0064387]
[1772113057940,0.628192,2071.2,2070.8,0.30058796]
[1772113058439,0.628192,2071.2,2070.9,0.01108119]
[1772113058617,0.630192,2071.3,2071.0,0.30523045]
[1772113058823,0.002,2071.6,2071.3,0.59950892]
[1772113059334,0.57684181,2071.6,2071.3,0.59950892]
[1772113059718,0.57684181,2071.6,2071.4,0.29414926]
[1772113059927,0.002,2071.7,2071.4,0.89365818]
[1772113060441,0.002,2071.7,2071.5,0.59950892]
[1772113060735,1.20874022,2071.7,2071.5,0.59950892]
[1772113060935,0.57684181,2071.7,2071.4,0.29414926]
[1772113061142,0.002,2071.5,2071.4,0.29414926]
[1772113061531,0.57684181,2071.5,2071.0,0.29414926]
[1772113062540,0.57684181,2071.5,2070.9,0.59950892]
[1772113064338,0.57484181,2071.3,2071.0,0.29414926]
[1772113066342,1.78185073,2071.3,2071.0,0.29414926]
[1772113066535,0.57484181,2071.3,2071.0,0.29414926]
[1772113067144,1.20695811,2071.4,2071.0,0.89365818]
[1772113067446,1.78179992,2071.4,2071.0,0.89365818]
[1772113072579,1.78179992,2071.4,2071.2,0.001]
[1772113072730,1.78379992,2071.4,2071.2,0.001]
[1772113073122,1.20895811,2071.4,2071.2,0.001]
[1772113073328,1.20891675,2071.4,2071.2,0.001]
[1772113074255,0.57684181,2071.4,2071.2,0.001]
[1772113075855,0.002,2071.4,2071.2,0.001]
[1772113076254,0.58941299,2071.4,2071.2,0.001]
[1772113076631,0.58941299,2071.4,2071.0,0.29514926]
[1772113076632,0.58741299,2071.3,2071.0,0.001]
[1772113078345,0.58741299,2071.1,2071.0,0.001]
[1772113078675,0.58741299,2071.1,2070.7,0.001]
[1772113078977,1.501179,2071.2,2070.7,0.001]
[1772113078978,0.58741299,2070.9,2070.7,0.001]
[1772113079473,0.58741299,2071.1,2070.7,0.001]
[1772113080558,0.58741299,2070.9,2070.7,0.001]
[1772113083350,1.79466139,2070.9,2070.7,0.001]
[1772113083879,0.58741299,2070.9,2070.7,0.001]
[1772113084544,1.79462124,2070.9,2070.7,0.001]
[1772113085439,0.58741299,2070.9,2070.7,0.001]
[1772113086054,1.79462046,2070.9,2070.7,0.001]
[1772113088068,6.88212212,2071.2,2070.7,0.62246322]
[1772113088069,1.20713515,2071.1,2070.7,0.62246322]
[1772113088266,3.84847734,2071.2,2070.7,0.62246322]
[1772113088449,1.79447734,2071.2,2070.7,0.62246322]
[1772113089851,0.58741299,2071.1,2070.7,0.62246322]
[1772113091475,0.58741299,2071.1,2070.7,0.001]
[1772113091868,1.79455929,2071.0,2070.7,0.001]
[1772113092069,0.58741299,2070.9,2070.7,0.001]
[1772113093855,1.79454416,2071.1,2070.7,0.62246322]
[1772113094055,4.82823106,2071.2,2070.9,0.62146322]
[1772113094056,1.20704486,2071.2,2070.9,0.62146322]
[1772113094670,1.79445785,2071.2,2070.9,0.62146322]
[1772113094977,1.79445785,2071.2,2070.7,0.62246322]
[1772113095577,1.79445785,2071.2,2070.8,0.62146322]
[1772113096990,1.79637403,2071.4,2071.0,0.4413341]
[1772113097205,1.79633426,2071.4,2071.1,0.62146322]
[1772113097358,0.58941299,2071.4,2071.1,0.62146322]
[1772113097558,0.002,2071.4,2071.1,0.62146322]
[1772113097973,0.002,2071.2,2071.1,0.62146322]
[1772113098191,0.58941299,2071.2,2070.9,0.001]
[1772113099058,1.20708802,2071.1,2070.9,0.001]
[1772113099486,1.79649101,2071.2,2070.9,0.001]
[1772113100772,0.58741299,2071.1,2070.9,0.001]
[1772113101173,0.58941299,2071.2,2070.9,0.001]
[1772113101365,0.002,2071.2,2070.9,0.62246322]
[1772113101564,0.58941299,2071.4,2071.1,0.62146322]
[1772113101782,0.58941299,2071.4,2071.0,1.06279732]
[1772113102187,0.58941299,2071.4,2071.0,0.62146322]
[1772113103485,1.20697146,2071.3,2071.0,0.62146322]
[1772113104991,1.79633184,2071.4,2071.0,0.62146322]
[1772113105992,1.20891885,2071.4,2071.0,0.62146322]
[1772113106287,0.5971361,2071.3,2071.0,0.62146322]
[1772113107674,1.80411499,2071.3,2071.0,0.62146322]
[1772113108089,0.5971361,2071.2,2070.9,0.001]
[1772113109978,1.2070104,2071.3,2071.1,0.001]
[1772113110183,1.8041465,2071.3,2071.1,0.001]
[1772113110369,1.20894806,2071.4,2071.1,0.6152018]
[1772113110575,1.20894806,2071.4,2071.2,0.6142018]
[1772113110576,0.002,2071.4,2071.2,0.6142018]
[1772113111494,1.20891575,2071.4,2071.2,0.6142018]
[1772113111873,1.20702974,2071.2,2071.1,0.001]
[1772113112392,1.80415538,2071.3,2071.1,0.001]
[1772113116184,0.5971361,2071.2,2071.1,0.001]
[1772113117669,5.46558861,2071.4,2071.1,0.001]
[1772113117875,0.002,2071.4,2071.1,0.61467047]
[1772113118600,0.63776123,2071.4,2071.1,0.61467047]
[1772113120497,1.8446868,2071.4,2071.1,0.61467047]
[1772113121477,0.63776123,2071.4,2071.1,0.61467047]
[1772113121679,1.8446766,2071.4,2071.1,0.61467047]
[1772113122300,1.8446766,2071.4,2071.3,0.001]
[1772113122879,1.20891537,2071.4,2071.3,0.001]
[1772113123479,1.8446766,2071.4,2071.3,0.001]
[1772113123689,0.63576123,2071.3,2071.1,0.001]
[1772113125307,0.63776123,2071.4,2071.1,0.001]
[1772113126592,0.002,2071.4,2071.1,0.61467047]
[1772113127113,0.63776123,2071.4,2071.1,0.001]
[1772113127404,1.84467582,2071.4,2071.1,0.61467047]
[1772113128389,0.63576123,2071.3,2071.1,0.001]
[1772113130119,1.84278232,2071.3,2071.1,0.001]
[1772113130289,1.20702109,2071.3,2071.1,0.61467047]
[1772113131991,0.63576123,2071.2,2071.1,0.001]
[1772113132189,0.63576123,2071.1,2070.9,0.001]
[1772113133415,1.20703349,2071.2,2070.9,0.61467047]
[1772113133914,1.84279472,2071.2,2070.9,0.61467047]
[1772113134594,2.071,2071.4,2070.9,0.61467047]
[1772113134595,0.002,2071.4,2071.1,0.61367047]
[1772113135501,0.63576123,2071.3,2070.9,0.61467047]
[1772113136314,0.63576123,2071.3,2071.1,0.001]
[1772113136514,1.20702974,2071.2,2071.1,0.001]
[1772113136814,1.84477022,2071.3,2071.1,0.001]
[1772113137687,0.65211657,2071.2,2071.1,0.001]
[1772113138100,1.86112556,2071.3,2071.1,0.001]
[1772113138913,0.65211657,2071.2,2070.9,0.001]
[1772113140797,1.85920459,2071.1,2070.9,0.001]
[1772113142220,0.65211657,2071.1,2070.9,0.001]
[1772113142541,0.65211657,2071.2,2070.9,0.001]
[1772113142704,1.86109605,2071.3,2070.9,0.62424481]
[1772113143512,1.86109151,2071.3,2070.9,0.62424481]
[1772113145502,0.65211657,2071.2,2070.9,0.62424481]
[1772113147126,0.65411657,2071.3,2070.9,0.62424481]
[1772113148127,1.86112532,2071.3,2071.1,0.001]
[1772113149114,0.002,2071.3,2071.1,0.62424481]
[1772113150333,1.20897914,2071.3,2071.1,0.62424481]
[1772113150533,0.002,2071.3,2071.1,0.62424481]
[1772113154032,0.65411657,2071.3,2071.1,0.001]
[1772113154341,1.20702974,2071.2,2071.1,0.001]
[1772113154828,1.85914631,2071.2,2071.1,0.001]
[1772113157421,1.20702974,2071.2,2071.1,0.001]
[1772113157716,0.65411657,2071.3,2071.1,0.001]
[1772113159134,0.65411657,2071.3,2070.8,0.001]
[1772113159337,0.67026403,2070.9,2070.5,0.001]
[1772113159808,0.67026403,2070.7,2070.5,0.001]
[1772113161934,1.20732119,2070.7,2070.5,0.001]
[1772113162114,0.66976403,2070.6,2070.2,0.00276116]
[1772113162319,0.66976403,2070.6,2070.2,0.001]
[1772113163112,0.29408796,2070.6,2070.2,0.001]
[1772113163331,1.20732119,2070.7,2070.2,0.00432935]
[1772113163332,0.66976403,2070.5,2070.2,0.00432935]
[1772113163518,0.66976403,2070.6,2070.2,0.00488933]
[1772113163934,0.66976403,2070.4,2070.2,0.001]
[1772113167145,4.82996616,2070.5,2070.2,0.00707298]
[1772113167457,0.66976403,2070.6,2070.3,0.00607298]
[1772113168022,0.66976403,2070.6,2070.2,0.29508796]
[1772113168225,0.66976403,2070.6,2070.2,0.001]
[1772113168451,0.66976403,2070.5,2070.2,0.001]
[1772113169125,0.66976403,2070.3,2070.2,0.001]
[1772113170031,0.66976403,2070.3,2070.0,0.001]
[1772113171727,0.66926403,2070.1,2070.0,0.001]
[1772113173262,0.66926403,2070.0,2069.8,0.001]
[1772113173427,0.61614326,2069.9,2069.6,0.001]
[1772113173632,2.086,2070.0,2069.7,0.38758833]
[1772113174047,2.086,2070.0,2069.7,0.38858833]
[1772113174241,3.29373555,2070.0,2069.7,0.38858833]
[1772113174448,0.61614326,2069.9,2069.7,0.001]
[1772113175948,0.61614326,2069.7,2069.6,0.001]
[1772113176135,0.61614326,2069.7,2069.4,0.001]
[1772113176331,0.61614326,2069.6,2069.0,0.38913583]
[1772113176559,0.61614326,2069.6,2069.1,0.68398737]
[1772113177465,0.61614326,2069.6,2069.1,0.38989941]
[1772113177644,0.61614326,2069.6,2069.2,0.001]
[1772113178542,1.86395941,2069.5,2069.2,0.001]
[1772113178933,0.65593815,2069.4,2069.2,0.001]
[1772113180060,0.65593815,2069.4,2069.0,0.39288685]
[1772113180266,0.65593815,2069.4,2069.1,0.001]
[1772113180446,3.95090988,2069.6,2069.2,0.39360714]
[1772113181344,0.65593815,2069.5,2069.0,0.39360714]
[1772113182462,0.65593815,2069.3,2069.1,0.001]
[1772113183961,1.86400128,2069.5,2069.1,0.001]
[1772113184157,0.65593815,2069.4,2069.1,0.001]
[1772113184360,0.65593815,2069.4,2069.1,0.39672257]
[1772113185656,1.20806313,2069.5,2069.2,0.39809798]
[1772113185857,2.087,2069.6,2069.3,0.39709798]
[1772113186163,1.20989218,2069.8,2069.5,0.39709798]
[1772113186470,0.002,2069.8,2069.5,0.39709798]
[1772113186968,0.002,2069.8,2069.5,0.39809798]
[1772113187149,0.002,2069.8,2069.6,0.39777024]
[1772113187768,0.002,2069.8,2069.7,0.39943274]
[1772113188171,0.002,2070.0,2069.7,0.39943274]
[1772113188954,0.002,2070.0,2069.8,0.39709095]
[1772113189872,0.002,2070.3,2069.9,0.3977419]
[1772113190074,0.002,2070.3,2070.0,0.29408796]
[1772113190457,0.002,2070.3,2070.0,0.69248152]
[1772113190661,0.002,2070.3,2070.1,0.39939356]
[1772113192869,0.002,2070.3,2070.1,0.001]
[1772113192870,0.65793815,2070.3,2070.1,0.001]
[1772113193354,1.86550983,2070.3,2070.1,0.001]
[1772113193753,0.65793815,2070.3,2070.1,0.001]
[1772113194781,0.002,2070.3,2070.1,0.001]
[1772113195581,0.002,2070.3,2070.0,1.90266177]
[1772113195879,0.002,2070.3,2070.1,0.001]
[1772113196382,0.002,2070.3,2070.0,1.90266177]
[1772113196681,0.002,2070.3,2070.1,0.001]
[1772113197695,0.6805611,2071.0,2070.3,0.40328604]
[1772113197981,0.6805611,2071.0,2070.6,0.29408796]
[1772113198352,0.6805611,2071.0,2070.6,0.29508796]
[1772113198669,0.6805611,2071.0,2070.6,0.001]
[1772113198981,0.6805611,2071.0,2070.5,0.40328604]
[1772113199282,0.6805611,2071.0,2070.6,0.001]
[1772113199678,0.6805611,2071.0,2070.6,0.29508796]
[1772113199881,0.002,2071.1,2070.7,0.40443782]
[1772113200073,0.002,2071.1,2070.9,0.40443782]
[1772113200383,0.002,2071.1,2070.8,0.29508796]
[1772113200384,0.002,2071.1,2070.8,0.29408796]
[1772113202186,0.002,2071.3,2071.0,0.29408796]
[1772113202365,0.002,2071.3,2071.1,0.40555724]
[1772113203383,0.002,2071.3,2071.0,0.29408796]
[1772113203588,0.002,2071.3,2071.1,0.001]
[1772113205008,0.002,2071.5,2071.2,0.29408796]
[1772113205307,0.002,2071.5,2071.4,0.29408796]
[1772113205510,0.6825611,2071.8,2071.4,0.70180019]
[1772113205674,0.001,2072.0,2071.8,0.70180019]
[1772113205872,0.6805611,2072.1,2071.8,0.29408796]
[1772113206297,4.82487495,2072.6,2072.0,0.29408796]
[1772113206298,0.6805611,2072.3,2072.0,0.29408796]
[1772113206493,0.6805611,2072.5,2072.2,0.29408796]
[1772113206705,1.88676425,2072.7,2072.2,0.29408796]
[1772113206873,1.20620315,2072.7,2072.2,0.29408796]
[1772113207069,0.6805611,2072.6,2072.2,0.29408796]
[1772113207304,0.6805611,2072.6,2072.1,0.40823581]
[1772113208084,0.6805611,2072.6,2071.9,0.4087538]
[1772113208285,0.6805611,2072.5,2072.0,1.2065637]
[1772113208483,3.29815118,2072.8,2072.0,1.2065637]
[1772113208690,0.6805611,2072.7,2072.1,0.40926691]
[1772113210282,0.6805611,2072.7,2071.9,1.61636121]
[1772113211421,0.6805611,2072.5,2071.9,1.61636121]
[1772113211612,0.6805611,2072.5,2071.7,3.10547678]
[1772113212078,0.6805611,2072.5,2071.8,0.41076434]
[1772113212707,0.002,2072.3,2071.8,0.41076434]
[1772113213088,0.6825611,2072.3,2071.8,0.41076434]
[1772113213279,0.6825611,2072.3,2071.6,0.41126104]
[1772113213484,0.6805611,2072.1,2071.4,3.1041418]
[1772113213798,0.6805611,2072.1,2071.5,0.41174328]
[1772113215384,1.8871248,2072.0,2071.5,0.41174328]
[1772113215888,0.6805611,2071.9,2071.5,0.41174328]
[1772113216214,0.6805611,2071.9,2071.4,2.69288076]
[1772113216215,0.6805611,2071.9,2071.4,1.486]
[1772113216394,0.6805611,2071.9,2071.3,0.001]
[1772113217610,0.6805611,2071.7,2071.3,0.001]
[1772113220524,0.6805611,2071.5,2071.3,0.001]
[1772113221906,0.6805611,2071.5,2071.0,1.62458475]
[1772113222811,0.6805611,2071.4,2071.0,0.001]
[1772113223014,0.6805611,2071.4,2071.0,1.20814028]
[1772113223194,0.6805611,2071.6,2071.1,0.41688544]
[1772113223397,0.6805611,2071.6,2071.0,1.62546217]
[1772113223788,0.6805611,2071.6,2071.0,1.20814028]
[1772113225320,0.6805611,2071.4,2071.2,0.001]
[1772113225835,1.88736177,2071.6,2071.2,0.001]
[1772113226497,0.68065887,2071.5,2071.2,0.001]
[1772113227324,0.68065887,2071.7,2071.2,0.42000928]
[1772113227487,1.88729334,2071.9,2071.2,0.42000928]
[1772113227818,0.68065887,2071.9,2071.2,0.42000928]
[1772113228509,1.88729114,2071.9,2071.2,0.42000928]
[1772113231416,0.68265887,2072.0,2071.4,0.42063752]
[1772113234134,1.88925441,2072.0,2071.5,1.20685493]
[1772113234421,1.88925441,2072.0,2071.5,1.62865239]
[1772113235011,0.68065887,2071.9,2071.2,4.82899835]
[1772113235236,0.68065887,2071.9,2071.2,0.001]
[1772113236486,0.68065887,2071.7,2071.2,0.001]
[1772113237894,0.68065887,2071.7,2071.5,0.001]
[1772113238595,1.86002583,2071.6,2071.5,0.001]
[1772113242538,1.20870531,2071.8,2071.5,0.42641798]
[1772113242718,1.86192295,2071.8,2071.5,0.001]
[1772113252827,0.65322916,2071.7,2071.5,0.001]
[1772113253436,0.002,2071.8,2071.5,0.42962374]
[1772113253640,0.65522916,2071.8,2071.5,0.42962374]
[1772113255252,1.20673842,2071.7,2071.5,0.001]
[1772113256543,1.86195649,2071.8,2071.5,0.001]
[1772113256953,0.002,2072.0,2071.6,0.42894526]
[1772113257254,0.002,2072.2,2072.0,0.42694526]
[1772113258140,0.002,2072.2,2072.0,1.63348959]
[1772113258344,0.002,2072.2,2072.1,0.42685744]
[1772113259254,0.002,2072.5,2072.2,0.42676853]
[1772113259552,0.69557943,2072.5,2072.2,0.42676853]
[1772113259920,0.69557943,2072.5,2071.8,1.89668173]
[1772113260310,0.69357943,2072.2,2071.5,0.42768173]
[1772113260619,0.69357943,2072.0,2071.5,0.001]
[1772113261442,0.69357943,2071.8,2071.5,0.001]
[1772113262118,0.69357943,2071.8,2071.3,0.001]
[1772113262855,0.69357943,2071.6,2071.3,0.001]
[1772113263931,0.69357943,2071.4,2071.3,0.001]
[1772113266270,1.90049262,2071.4,2071.3,0.001]
[1772113267350,1.90049262,2071.4,2071.0,0.001]
[1772113267351,0.69357943,2071.3,2071.0,0.001]
[1772113268868,1.20673842,2071.7,2071.0,0.42898381]
[1772113269075,1.90031785,2071.7,2071.0,0.42898381]
[1772113269448,0.69357943,2071.6,2071.0,0.42898381]
[1772113269838,0.69357943,2071.6,2071.0,0.001]
[1772113270767,0.69357943,2071.4,2071.0,0.001]
[1772113271258,0.69357943,2071.2,2071.0,0.001]
[1772113272167,0.69357943,2071.2,2070.8,0.001]
[1772113272975,0.69357943,2071.0,2070.8,0.001]
[1772113275647,1.90075037,2071.0,2070.8,0.001]
[1772113276783,0.69357943,2070.9,2070.8,0.001]
[1772113279590,3.30098362,2071.3,2070.8,0.42825915]
[1772113280293,3.30098362,2071.3,2070.9,0.42725915]
[1772113285071,3.99456305,2071.3,2070.9,0.42725915]
[1772113285280,0.69357943,2071.2,2070.8,0.001]
[1772113285511,0.69357943,2071.2,2070.8,0.427883]
[1772113286980,3.30098362,2071.3,2070.8,1.20826234]
[1772113287182,3.97083361,2071.3,2070.9,0.42675986]
[1772113287382,3.97083361,2071.3,2071.0,0.001]
[1772113287897,0.002,2071.1,2071.0,0.001]
[1772113288989,0.002,2071.1,2071.0,0.42764016]
[1772113289191,2.094,2071.3,2071.1,0.42464016]
[1772113289699,0.002,2071.3,2071.1,0.42464016]
[1772113291699,0.002,2071.3,2071.0,0.42548599]
[1772113293105,0.69656601,2071.3,2070.8,0.001]
[1772113293304,1.90159575,2071.2,2070.8,0.001]
[1772113293478,0.002,2071.3,2070.8,0.001]
[1772113293812,0.69656601,2071.3,2070.8,0.001]
[1772113293988,0.002,2071.3,2070.8,0.001]
[1772113295916,0.69656601,2071.3,2070.8,0.001]
[1772113297484,0.69456601,2071.1,2070.8,0.001]
[1772113297684,0.69456601,2071.1,2070.5,0.001]
[1772113297685,0.69406601,2071.0,2070.5,0.001]
[1772113299689,0.69406601,2070.8,2070.7,0.001]
[1772113299889,0.69406601,2070.8,2070.5,0.001]
[1772113301416,1.20718249,2071.0,2070.5,0.001]
[1772113301617,0.69406601,2071.0,2070.5,0.001]
[1772113301822,1.90123972,2071.0,2070.6,0.0035272]
[1772113303519,1.90123972,2071.0,2070.5,0.00500842]
[1772113304617,0.69406601,2071.0,2070.5,0.00500842]
[1772113304927,2.104,2071.1,2070.5,0.00500842]
[1772113305379,3.31108913,2071.1,2070.5,0.00500842]
[1772113306532,2.104,2071.1,2070.6,0.00472457]
[1772113306707,0.002,2071.1,2070.7,0.00472457]
[1772113308421,0.69606601,2071.1,2070.5,1.21338272]
[1772113308923,1.90319384,2071.1,2070.6,0.00517434]
[1772113311627,0.69406601,2071.0,2070.8,0.001]
[1772113311826,0.69406601,2071.0,2070.5,0.001]
[1772113313445,0.69381601,2070.8,2070.3,0.00633332]
[1772113313914,0.69381601,2070.8,2070.3,1.21388076]
[1772113314515,0.69381601,2070.8,2070.3,1.21388432]
[1772113316451,0.69381601,2070.9,2070.4,0.00730591]
[1772113317454,0.69381601,2070.9,2070.3,1.21501081]
[1772113318554,1.20723984,2070.9,2070.3,1.21501081]
[1772113318755,0.69381601,2070.8,2070.3,1.21501081]
[1772113319261,0.69381601,2070.8,2070.4,0.0077674]
[1772113320957,0.69381601,2070.9,2070.5,0.0080664]
[1772113322854,0.69381601,2070.8,2070.3,1.21591189]
[1772113323255,0.69381601,2070.8,2070.4,0.00835743]
[1772113323458,0.69381601,2070.8,2070.6,0.001]
[1772113324267,0.69381601,2070.8,2070.4,0.001]
[1772113325082,0.69381601,2070.6,2070.4,0.001]
[1772113325437,1.20731044,2070.8,2070.4,0.001]
[1772113325744,0.69381601,2070.7,2070.4,0.001]
[1772113326243,0.002,2070.9,2070.5,0.00879554]
[1772113326665,0.002,2070.9,2070.7,0.00893562]
[1772113327063,0.002,2070.9,2070.7,1.21625588]
[1772113327638,0.002,2071.1,2070.9,0.0070758]
[1772113328057,0.69681601,2071.1,2070.6,0.0070758]
[1772113329138,0.69481601,2070.9,2070.4,1.20848498]
[1772113329850,0.69481601,2070.9,2070.4,0.001]
[1772113331170,1.9020789,2070.8,2070.4,0.001]
[1772113331770,0.69481601,2070.8,2070.4,0.001]
[1772113333165,1.90211869,2070.8,2070.4,0.001]
[1772113333565,0.69481601,2070.7,2070.4,0.001]
[1772113335472,1.20730547,2070.8,2070.4,0.00902279]
[1772113335766,1.90212148,2070.8,2070.4,0.00902279]
[1772113335946,0.69481601,2070.7,2070.4,0.001]
[1772113336344,0.69631601,2070.6,2070.4,0.001]
[1772113337839,0.002,2070.6,2070.4,0.01041578]
[1772113341550,0.002,2070.6,2070.5,0.00991146]
[1772113341753,0.002,2070.8,2070.5,0.00991146]
[1772113343998,0.002,2070.8,2070.6,1.21752764]
[1772113345894,0.002,2070.8,2070.7,0.01037741]
[1772113346372,0.002,2071.1,2070.8,0.01049051]
[1772113347040,0.002,2071.3,2070.8,0.00860285]
[1772113348064,0.002,2071.3,2071.0,0.00871365]
[1772113348469,0.002,2071.3,2071.0,1.21584751]
[1772113348666,0.002,2071.1,2071.0,1.21584751]
[1772113350274,0.002,2071.3,2071.0,1.21584751]
[1772113350682,0.002,2071.3,2071.1,0.00903825]
[1772113351683,0.69731601,2071.3,2070.9,0.009144]
[1772113351857,0.69731601,2071.3,2070.9,1.21634288]
[1772113353181,0.69731601,2071.3,2071.0,0.00925181]
[1772113354173,0.69731601,2071.3,2070.9,1.20720174]
[1772113354579,0.69731601,2071.3,2071.0,0.00947003]
[1772113356700,0.69531601,2071.2,2070.8,1.472]
[1772113356905,0.69531601,2071.2,2070.6,1.21802057]
[1772113357284,0.69531601,2071.2,2070.8,0.00979161]
[1772113358504,0.69531601,2071.2,2070.8,1.21705392]
[1772113359601,0.69531601,2071.1,2070.8,0.00979161]
[1772113359808,0.69531601,2071.1,2070.8,1.21705244]
[1772113360300,1.20897903,2071.3,2070.8,1.21705244]
[1772113360503,0.69531601,2071.2,2070.8,1.21705244]
[1772113360705,0.69531601,2071.2,2071.0,0.001]
[1772113360876,0.002,2071.1,2071.0,0.001]
[1772113362007,0.002,2071.1,2071.0,0.01127105]
[1772113362508,0.002,2071.3,2071.1,0.01036549]
[1772113365627,0.002,2071.3,2071.1,1.21744782]
[1772113367188,0.002,2071.3,2071.1,1.21745241]
[1772113367394,0.002,2071.3,2071.1,0.01036549]
[1772113369598,0.69731601,2071.3,2071.0,1.20810763]